fUSD/lending_fUSD_20240103
["ID","MTS","AMOUNT","RATE_DAILY","PERIOD"]
[310071379,1704300661435,-3968.42,0.00032876,2]
[310071380,1704300661445,-3968.42,0.00032876,2]
[310071381,1704300661454,-3968.42,0.00032876,2]
[310071382,1704300661463,-555.0,0.00032876,2]
[310071383,1704300661474,-3968.42,0.00032876,2]
[310071384,1704300661485,-645.6,0.00032876,2]
[310071385,1704300661494,-174.97988338,0.00032876,2]
[310071386,1704300661505,-3968.42,0.00032876,2]
[310071387,1704300661515,-645.6,0.00032876,2]
[310071388,1704300661526,-3968.42,0.00032876,2]
[310071389,1704300661537,-645.6,0.00032876,2]
[310071390,1704300661548,-3968.42,0.00032876,2]
[310071391,1704300661557,-645.6,0.00032876,2]
[310071392,1704300661567,-645.6,0.00032876,2]
[310071393,1704300661576,-3968.4509,0.00032876,2]
[310071394,1704300661586,-645.6,0.00032876,2]
[310071395,1704300661595,-645.6,0.00032876,2]
[310071396,1704300661605,-645.6,0.00032876,2]
[310071397,1704300661614,-500.0,0.00032876,2]
[310071398,1704300661623,-435.51,0.00032876,2]
[310071399,1704300661633,-645.6,0.00032876,2]
[310071400,1704300661643,-645.6,0.00032876,2]
[310071401,1704300661651,-645.6,0.00032876,2]
[310071402,1704300661661,-500.0,0.00032876,2]
[310071403,1704300661670,-645.6,0.00032876,2]
[310071404,1704300661679,-645.6,0.00032876,2]
[310071405,1704300661688,-645.6,0.00032876,2]
[310071406,1704300661698,-1959.72,0.00032876,2]
[310071407,1704300661708,-500.0,0.00032876,2]
[310071408,1704300661717,-1556.57409983,0.00032876,2]
[310071409,1704300670810,43627.2383743,0.00023,2]
[310071410,1704300670837,110485.91354719,0.00023,2]
[310071411,1704300670863,193619.7681792,0.00023,2]
[310071412,1704300670886,55000.0,0.00023,2]
[310071413,1704300670912,33593.03417006,0.00023,2]
[310071414,1704300681741,1404.47523422,9e-05,2]
[310071415,1704300687144,700.75243193,0.00018,2]
[310071416,1704300695796,927.79652603,0.0002,2]
[310071417,1704300714218,3882.81198272,0.00021,4]
[310071419,1704300835122,616487.08554058,0.00023,2]
[310071424,1704300852104,500.0,0.0002,2]
[310071425,1704300869419,40686.46914199,0.00022,2]
[310071669,1704301133983,500.0,0.000245,2]
[310071679,1704301163339,-959.70185952,0.00024999,2]
[310071680,1704301163365,-500.0,0.00025,2]
[310071681,1704301163392,-463.0,0.00025098,2]
[310071682,1704301163419,-1794.45509643,0.000251,2]
[310072019,1704301787054,177.447162,0.00024977,2]
[310072024,1704301831778,-784.17302211,0.00025359,2]
[310072025,1704301831796,-175.52883741,0.00025359,2]
[310072026,1704301831807,-2229.96322286,0.0002536,2]
[310072027,1704301831820,-12814.03677714,0.0002536,2]
[310072028,1704301831830,-273.17547929,0.0002549,2]
[310072029,1704301831839,-391.51,0.00026252,2]
[310072030,1704301831849,-520.48321937,0.000264,2]
[310072031,1704301831858,-184.99564465,0.000275,2]
[310072032,1704301831867,-1733.55869915,0.00027995,28]
[310072033,1704301831877,-158.28,0.00028131,2]
[310072034,1704301831886,-1000.0,0.00028206,2]
[310072035,1704301831895,-628.86,0.00028236,2]
[310072036,1704301831905,-499.99,0.00028236,2]
[310072037,1704301831915,-150.99,0.00028236,2]
[310072038,1704301831925,-11571.99,0.00028236,2]
[310072039,1704301831934,-160.21,0.00028336,2]
[310072040,1704301831944,-1816.31,0.00028337,2]
[310072041,1704301831953,-183.06,0.00028398,2]
[310072042,1704301831963,-154.52,0.00028417,2]
[310072043,1704301831973,-5215.0406931,0.00028417,2]
[310072044,1704301831982,-12066.41844266,0.00028427,2]
[310072045,1704301832306,-11803.58155734,0.00028427,2]
[310072046,1704301832317,-250.0,0.00028439,2]
[310072047,1704301832326,-215.07,0.00028473,2]
[310072048,1704301832337,-200.0,0.00028485,2]
[310072049,1704301832346,-391.51,0.00028515,2]
[310072050,1704301832356,-338.96,0.00028541,2]
[310072051,1704301832365,-3551.5509,0.000287,2]
[310072052,1704301832375,-500.0,0.000287,2]
[310072053,1704301832384,-996.4427,0.000287,2]
[310072054,1704301832394,-150.0,0.00028764,2]
[310072055,1704301832403,-331.3958772,0.00028893,6]
[310072056,1704301832413,-4661.3,0.00028893,2]
[310072057,1704301832422,-160.21,0.00029074,2]
[310072058,1704301832431,-158.28,0.00029273,2]
[310072059,1704301832440,-159.03,0.00029707,2]
[310072060,1704301832449,-160.21,0.00029812,2]
[310072061,1704301832461,-220.87,0.0002989,10]
[310072062,1704301832470,-344.86,0.0002989,10]
[310072063,1704301832479,-287.38,0.0002989,10]
[310072065,1704301832489,-822.5451,0.00029898,2]
[310072066,1704301832498,-1912.59922898,0.000299,2]
[310072068,1704301832507,-7500.0,0.000299,2]
[310072070,1704301832516,-948.23563422,0.000299,4]
[310072073,1704301832526,-736.8989,0.000299,2]
[310072075,1704301832536,-4878.0269,0.000299,2]
[310072076,1704301832545,-1129.2281,0.000299,2]
[310072078,1704301832554,-1000.0,0.000299,2]
[310072080,1704301832563,-2731.20332596,0.000299,2]
[310072083,1704301832574,-2500.0,0.000299,2]
[310072085,1704301832585,-205.0,0.00029925,2]
[310072087,1704301832595,-968.25804171,0.00029998,2]
[310072090,1704301832605,-184.06324017,0.00029998,2]
[310072093,1704301832615,-56585.75019294,0.00029998,2]
[310072096,1704301832625,-237.51824613,0.00029998,2]
[310072099,1704301832634,-4285.1722165,0.00029999,2]
[310072102,1704301832643,-156.11998912,0.00029999,2]
[310072107,1704301832664,-3701.99700991,0.00029999,2]
[310072110,1704301832676,-56643.77882798,0.0003,2]
[310072113,1704301832688,-307734.33925733,0.0003,4]
[310072116,1704301832698,-155.0,0.0003,2]
[310072121,1704301832711,-3681.52031968,0.0003,2]
[310072124,1704301832720,-117972.09606151,0.0003,2]
[310072127,1704301832731,-158.28,0.00030415,2]
[310072129,1704301832741,-164.81,0.00030441,2]
[310072131,1704301832751,-391.51,0.00030779,2]
[310072133,1704301832761,-675.1928,0.000309,2]
[310072135,1704301832771,-340.0089,0.000309,2]
[310072137,1704301832780,-638.0874,0.000309,2]
[310072139,1704301832790,-948.23563421,0.00030904,5]
[310072141,1704301832800,-153.84,0.00030973,2]
[310072143,1704301832809,-8806.28564995,0.00030998,4]
[310072145,1704301832819,-676.38772422,0.00030998,4]
[310072147,1704301832829,-2585.47084951,0.00030999,4]
[310072149,1704301832839,-444.58913394,0.00030999,4]
[310072151,1704301832849,-350000.0,0.00031,2]
[310072153,1704301832858,-368.5063198,0.00031,2]
[310072154,1704301832868,-1691.64906136,0.0003136,14]
[310072156,1704301832879,-158.28,0.00031556,2]
[310072157,1704301832888,-2889.0,0.00031692,2]
[310072158,1704301832897,-2265.0,0.00031692,2]
[310072159,1704301832907,-3779.845,0.00031692,2]
[310072160,1704301832917,-1026.0,0.00031692,2]
[310072161,1704301832928,-1000.0,0.00031732,2]
[310072162,1704301832938,-150.0,0.00031781,2]
[310072163,1704301832947,-150.0,0.00031781,2]
[310072164,1704301832960,-20489.01990033,0.000318,2]
[310072165,1704301832975,-2000.0,0.000318,2]
[310072167,1704301837778,-250.0,0.00028125,2]
[310072168,1704301837789,-250.0,0.00028127,2]
[310072169,1704301837798,-205.0,0.00029925,2]
[310072170,1704301837808,-1742.82,0.00029999,2]
[310072171,1704301837818,-1742.82,0.00029999,2]
[310072172,1704301837828,-805.73566133,0.00029999,2]
[310072173,1704301837840,-937.08433867,0.00029999,2]
[310072174,1704301837851,-1742.82,0.00029999,2]
[310072175,1704301837861,-1742.82,0.00029999,2]
[310072176,1704301837871,-1742.82,0.00029999,2]
[310072177,1704301837881,-1742.82,0.00029999,2]
[310072178,1704301837891,-1742.82,0.00029999,2]
[310072179,1704301837901,-1742.82,0.00029999,2]
[310072180,1704301837911,-1505.99566134,0.00030999,2]
[310072181,1704301837928,-236.82433866,0.00030999,2]
[310072182,1704301837939,-712.16022634,0.000318,2]
[310072183,1704301838103,-2442.53496093,0.000318,2]
[310072184,1704301838112,-5908.53270468,0.000318,3]
[310072185,1704301838123,-150.86287723,0.000319,2]
[310072186,1704301838133,-150.86287723,0.000319,2]
[310072187,1704301838142,-948.23563421,0.00031909,5]
[310072188,1704301838152,-153.84,0.00031912,2]
[310072189,1704301838162,-379.58203403,0.00032,4]
[310072190,1704301838171,-263.3,0.00032,2]
[310072191,1704301838181,-150.0,0.00032055,2]
[310072192,1704301838190,-150.0,0.00032055,2]
[310072193,1704301838202,-150.0,0.00032055,2]
[310072195,1704301838213,-150.0,0.00032055,2]
[310072196,1704301838222,-150.86287723,0.00032222,2]
[310072198,1704301838232,-150.0,0.00032352,2]
[310072200,1704301838242,-205.0,0.00032431,6]
[310072202,1704301838251,-1839.37252152,0.0003245,4]
[310072205,1704301838264,-160.62747848,0.0003245,4]
[310072206,1704301838273,-995.08833882,0.00032515,4]
[310072208,1704301838282,-15443.9591137,0.0003255,7]
[310072210,1704301838292,-13939.23274827,0.0003255,7]
[310072212,1704301838302,-2484.10512956,0.0003255,7]
[310072215,1704301838312,-1234.0,0.00032684,2]
[310072217,1704301838321,-601.709,0.00032684,2]
[310072219,1704301838330,-158.28,0.00032698,2]
[310072239,1704301838621,-1053.78238251,0.000327,2]
[310072240,1704301838632,-1053.78238249,0.000327,2]
[310072241,1704301838642,-1907.7355075,0.000327,2]
[310072242,1704301838652,-219.64820223,0.000327,6]
[310072243,1704301838662,-1053.78238249,0.000327,2]
[310072244,1704301838673,-1053.78238249,0.000327,2]
[310072245,1704301838683,-1053.78238249,0.000327,2]
[310072246,1704301838693,-1053.78238249,0.000327,2]
[310072247,1704301838703,-1053.78238249,0.000327,2]
[310072248,1704301838715,-188.60485515,0.000327,2]
[310072249,1704301838725,-1053.78238249,0.000327,2]
[310072250,1704301838736,-1053.78238249,0.000327,2]
[310072251,1704301838746,-1053.78238249,0.000327,2]
[310072252,1704301838756,-368.96801818,0.000327,2]
[310072253,1704301838767,-1053.78238249,0.000327,2]
[310072254,1704301838785,-1053.78238249,0.000327,2]
[310072255,1704301838799,-648.77156409,0.000327,2]
[310072256,1704301838809,-1053.78238249,0.000327,2]
[310072257,1704301838818,-1053.78238249,0.000327,2]
[310072258,1704301838827,-1053.78238249,0.000327,2]
[310072259,1704301838837,-57897.23829991,0.00032776,2]
[310072328,1704301840341,-21511.0,0.00032776,2]
[310072336,1704301840401,-1365.49042449,0.00032776,2]
[310072343,1704301840464,-995.449599,0.00032776,2]
[310072346,1704301840476,-821.90744022,0.00032776,2]
[310072348,1704301840488,-688.57565016,0.00032776,2]
[310072350,1704301840500,-43150.67870687,0.00032776,2]
[310072415,1704301841171,-300.6144999,0.000325,2]
[310072417,1704301841184,-705.41846479,0.000325,2]
[310072419,1704301841193,-1551.23238168,0.00032776,2]
[310072430,1704301841285,-5920.37385265,0.00032776,2]
[310072505,1704301842774,-400.0,0.000327,2]
[310072513,1704301842842,-653.78238249,0.000327,2]
[310072515,1704301842852,-440.6890803,0.00032775,4]
[310072516,1704301842861,-269.83626346,0.00032775,2]
[310072517,1704301842871,-443.71682936,0.00032775,2]
[310072518,1704301843080,-6209.46929753,0.00032775,2]
[310072519,1704301843092,-622.56932309,0.00032775,2]
[310072520,1704301843105,-413.26,0.00032775,2]
[310072521,1704301843117,-5995.51689906,0.00032775,2]
[310072536,1704301845775,-155.0,0.00032699,4]
[310072537,1704301845785,-155.0,0.00032699,4]
[310072538,1704301845794,-19676.07784728,0.00032774,2]
[310072539,1704301845804,-13013.89300434,0.00032774,4]
[310072540,1704301845813,-80712.73200529,0.00032775,2]
[310072541,1704301845828,-17972.08495454,0.00032775,2]
[310072542,1704301845843,-155.24477698,0.00032775,4]
[310072543,1704301845852,-361.6004889,0.00032775,4]
[310072544,1704301845862,-2129.994798,0.00032775,4]
[310072545,1704301845872,-1193.7964356,0.00032775,4]
[310072546,1704301845882,-5000.0,0.00032775,4]
[310072547,1704301845892,-16380.48520378,0.00032776,2]
[310072548,1704301845904,-1407.58137535,0.00032776,2]
[310072549,1704301846008,-3003.67259285,0.00032776,2]
[310072550,1704301846020,-750.25327955,0.00032776,2]
[310072551,1704301846040,-298.5091935,0.00032776,2]
[310072552,1704301846055,-2046.16765913,0.00032776,2]
[310072553,1704301846075,-65480.07179776,0.00032776,2]
[310072554,1704301846087,-686.65599017,0.00032776,2]
[310072555,1704301846102,-281.13637335,0.00032776,2]
[310072583,1704301852147,500.0,0.00024977,2]
[310072584,1704301865138,167.741242,0.00025003,2]
[310072586,1704302307458,6066.31265179,0.00025003,2]
[310072587,1704302307529,401.63453828,0.00024253,2]
[310072588,1704302313235,1030.51455742,0.00025003,2]
[310072589,1704302314143,359.77442061,0.00023997,2]
[310072590,1704302314282,3804.61176821,0.00025003,2]
[310072591,1704302314399,80511.96365969,0.00025003,2]
[310072610,1704302372912,150.0,0.00024003,2]
[310072617,1704302393952,608.0657442,0.00024003,2]
[310072621,1704302396942,890416.96882958,0.00024003,2]
[310072622,1704302396969,201261.23040101,0.00024003,2]
[310072633,1704302403128,150.0,0.00024003,2]
[310072634,1704302403379,150.0,0.00024003,2]
[310072635,1704302403803,150.0,0.00024003,2]
[310072637,1704302404059,150.0,0.00024003,2]
[310072638,1704302404296,253.11754624,0.00024003,2]
[310072639,1704302409022,675.591265,0.00024426,2]
[310072640,1704302409926,596.4681545,0.00024003,2]
[310072643,1704302417035,1091678.19923059,0.00024003,2]
[310072648,1704302434906,704935.39340266,0.00024003,2]
[310072649,1704302434930,278000.0,0.00024003,2]
[310072650,1704302434956,108742.80582793,0.00024003,2]
[310072652,1704302441339,260.07780583,0.00023873,2]
[310072659,1704302458908,964730.25108777,0.00024003,2]
[310072667,1704302499675,170.83,0.00022212,2]
[310072683,1704302708567,153.38227337,0.0002441,2]
[310072687,1704302778949,375.68843416,0.000245,2]
[310072688,1704302779682,2263.96943386,0.000245,2]
[310072689,1704302781483,764.35468494,0.000245,2]
[310072690,1704302781672,5675.62947869,0.000245,2]
[310072691,1704302783703,220.37171058,0.000245,2]
[310072692,1704302784390,620.21196217,0.000245,2]
[310072696,1704302785637,309.16657707,0.000245,2]
[310072699,1704302787549,3023.42825364,0.000245,2]
[310072700,1704302788242,4473.72062021,0.000245,2]
[310072701,1704302790218,697.06047486,0.000245,2]
[310072702,1704302791726,155.0,0.000245,2]
[310072703,1704302792566,527.54543763,0.000245,2]
[310072704,1704302794726,155.0,0.000245,2]
[310072705,1704302796175,931.13114601,0.000245,2]
[310072706,1704302797883,3613.76151731,0.000245,2]
[310072707,1704302798392,619.96222449,0.00023521,2]
[310072708,1704302798463,234.89015367,0.000245,2]
[310072709,1704302798962,252.12148909,0.00024499,2]
[310072710,1704302799083,277.96277619,0.00024499,2]
[310072711,1704302800481,207.9220019,0.00024499,2]
[310072712,1704302801543,5000.0,0.000245,2]
[310072713,1704302802557,214.47459225,0.000245,2]
[310072714,1704302803086,217.28450417,0.000245,2]
[310072715,1704302803167,10525.07510932,0.000245,2]
[310072716,1704302804199,404.90749566,0.000245,2]
[310072717,1704302804436,18956.58157169,0.000245,2]
[310072718,1704302805756,4194.15724049,0.00024494,2]
[310072719,1704302805979,173.49916985,0.000245,2]
[310072720,1704302808059,416.76204987,0.000245,2]
[310072721,1704302808543,33652.19202848,0.000245,2]
[310072722,1704302809924,6418.11723431,0.000245,2]
[310072723,1704302813900,5261.61661609,0.000245,2]
[310072724,1704302814502,627.1116,0.000245,2]
[310072725,1704302820362,586.0,0.000245,2]
[310072726,1704302820842,16713.83662006,0.000245,2]
[310072727,1704302822874,150.0,0.000245,2]
[310072728,1704302823529,3181.30577157,0.000245,2]
[310072729,1704302830005,157.04252938,0.000245,2]
[310072731,1704302832465,500.00466881,0.000245,2]
[310072732,1704302834535,695.52274718,0.000245,2]
[310072733,1704302839533,3044.97255362,0.00023876,2]
[310072735,1704302844347,-11645.27960351,0.00024501,2]
[310072736,1704302844373,-375.2657626,0.00024501,2]
[310072737,1704302844398,-213.55247323,0.00024501,2]
[310072738,1704302844423,-545.50088884,0.00024501,2]
[310072739,1704302844448,-207.36009217,0.00024501,2]
[310072740,1704302844474,-2263.96943386,0.00024501,2]
[310072741,1704302844499,-380.53603399,0.00024501,2]
[310072742,1704302844525,-202.60729845,0.00024501,2]
[310072743,1704302844550,-155.23105754,0.00024501,2]
[310072744,1704302844576,-429.36757461,0.00024501,2]
[310072745,1704302844603,-1850.80818134,0.00024501,2]
[310072746,1704302844628,-527.54543763,0.00024501,2]
[310072747,1704302844652,-1000.0,0.00024502,2]
[310072748,1704302844677,-221.08000617,0.00024502,2]
[310072749,1704302844701,-3613.76151731,0.00024502,2]
[310072750,1704302844725,-607.3061815,0.00024502,2]
[310072751,1704302844750,-10525.07510932,0.00024502,2]
[310072752,1704302844774,-323.4839241,0.00024516,2]
[310072753,1704302844799,-252.12148909,0.00024516,2]
[310072754,1704302844824,-217.28450417,0.00024516,2]
[310072755,1704302844849,-214.96212171,0.00024516,2]
[310072756,1704302844875,-4252.53898186,0.00024872,2]
[310072757,1704302844900,-1889.54778276,0.00024873,2]
[310072758,1704302844925,-258.8174582,0.00024873,2]
[310072759,1704302844950,-19022.70383479,0.00024873,2]
[310072760,1704302844976,-416.76204987,0.00024873,2]
[310072761,1704302845001,-164.41285277,0.00024873,2]
[310072762,1704302845027,-3178.93320891,0.00024873,2]
[310072763,1704302845052,-157.95006801,0.00024874,2]
[310072764,1704302845080,-234.89015367,0.00024874,2]
[310072765,1704302845106,-3999.64784293,0.00024874,2]
[310072766,1704302845131,-1863.66263035,0.00024874,2]
[310072767,1704302845158,-9695.03444474,0.00024875,2]
[310072769,1704302877031,175.0007608,0.000245,2]
[310072774,1704302929981,2960.3796,0.00024404,2]
[310072914,1704303031919,-157.04252938,0.00024865,2]
[310072917,1704303031930,-454.10846927,0.00024866,2]
[310072922,1704303031942,-45.89619954,0.00024866,2]
[310072926,1704303031951,-381.70380046,0.00024867,2]
[310072933,1704303031992,-35.05824941,0.00024867,2]
[310072935,1704303032002,-150.0,0.00024872,2]
[310072937,1704303032013,-238.10960476,0.00024873,2]
[310072939,1704303032023,-186.69559245,0.00024873,2]
[310072941,1704303032036,-679.8551149,0.00024873,2]
[310072945,1704303032056,-1966.09575256,0.00024873,2]
[310072947,1704303032066,-174.59758256,0.00024873,2]
[310072949,1704303032077,-485.78743976,0.00024873,2]
[310072950,1704303032087,-11645.27960351,0.00024873,2]
[310072952,1704303032097,-200.25505775,0.00024873,2]
[310072954,1704303032106,-174.97988338,0.00024873,2]
[310072956,1704303032116,-418.25169889,0.00024873,2]
[310072958,1704303032126,-338.0963227,0.00024874,2]
[310072960,1704303032137,-5723.05715345,0.00024874,2]
[310072962,1704303032149,-21590.67950545,0.00024875,2]
[310072967,1704303032186,-377.71791048,0.00024875,2]
[310072969,1704303032207,-1162.57294382,0.00024875,2]
[310072971,1704303032217,-915.77,0.00024903,2]
[310072972,1704303032229,-205.57147773,0.00025003,2]
[310072974,1704303032240,-354.05394584,0.00025003,2]
[310072975,1704303032249,-499.99,0.00025003,2]
[310072976,1704303032260,-695.46828429,0.00025003,2]
[310073012,1704303038008,-437.70943335,0.00025003,2]
[310073013,1704303038120,-150.93228236,0.00025003,2]
[310073014,1704303038138,-153.38227332,0.00025106,2]
[310073015,1704303038166,-252.22757398,0.00025106,2]
[310073016,1704303038184,-656.78242602,0.00025106,2]
[310073017,1704303038197,-462.85,0.00025412,2]
[310073018,1704303038208,-455.33,0.00025412,2]
[310073019,1704303038221,-153.38227332,0.00025803,2]
[310073020,1704303038238,-153.38227332,0.00026499,2]
[310073021,1704303038250,-4659.69096947,0.00026499,2]
[310073022,1704303038265,-5340.29903053,0.00026499,2]
[310073023,1704303038277,-445.90233337,0.00026696,2]
[310073024,1704303038288,-290.57,0.00026696,12]
[310073025,1704303038301,-1250.0,0.00027,3]
[310073026,1704303038313,-4627.49,0.00027127,2]
[310073028,1704303038325,-400.0,0.00027161,2]
[310073030,1704303038336,-585.61,0.00027177,2]
[310073033,1704303038348,-153.38227332,0.00027195,2]
[310073035,1704303038359,-4841.56,0.00027222,2]
[310073037,1704303038370,-179.54,0.00027228,2]
[310073039,1704303038382,-500.0,0.00027256,2]
[310073042,1704303038394,-176.89,0.00027259,2]
[310073044,1704303038406,-841.5,0.00027266,2]
[310073046,1704303038417,-10549.61491921,0.00027312,2]
[310073049,1704303038438,-753.50631651,0.00027312,2]
[310073051,1704303038452,-12596.87876428,0.00027312,2]
[310073052,1704303038462,-2000.0,0.00027319,2]
[310073053,1704303038478,-500.0,0.0002733,2]
[310073054,1704303038489,-7.8715026,0.00027359,2]
[310073055,1704303038503,-202.1284974,0.00027359,2]
[310073058,1704303038515,-1893.85,0.00027379,2]
[310073060,1704303038527,-239.17,0.00027397,2]
[310073062,1704303038538,-3581.22,0.00027397,2]
[310073064,1704303038548,-250.0,0.00027397,2]
[310073066,1704303038559,-500.0,0.000274,2]
[310073069,1704303038573,-250.0,0.00027455,2]
[310073071,1704303038585,-239.17,0.00027556,2]
[310073073,1704303038596,-1391.46150259,0.00027593,2]
[310073212,1704303040520,-150.0,0.00027453,2]
[310073214,1704303040533,-460.95849741,0.00027593,2]
[310073217,1704303040545,-119.11275025,0.00027617,2]
[310073219,1704303040558,-1425.10724975,0.00027617,2]
[310073220,1704303040569,-385.57642441,0.00027628,2]
[310073221,1704303040583,-2842.1051343,0.00027628,2]
[310073222,1704303040602,-658.76844129,0.00027628,2]
[310073224,1704303040613,-500.0,0.00027648,2]
[310073226,1704303040623,-7767.16222511,0.00027648,2]
[310073228,1704303040638,-785.69904767,0.00027648,2]
[310073232,1704303040658,-500.0,0.00027648,2]
[310073234,1704303040673,-342.1570288,0.00027648,2]
[310073238,1704303040701,-1299.32169842,0.00027648,2]
[310073240,1704303040712,-173.76258958,0.00027676,2]
[310073243,1704303040727,-289.08741042,0.00027676,2]
[310073245,1704303040739,-200.0,0.00027689,2]
[310073247,1704303040748,-200.0,0.00027706,2]
[310073250,1704303040759,-239.17,0.00027714,2]
[310073252,1704303040769,-600.0,0.00027779,2]
[310073254,1704303040780,-318.24,0.00027813,2]
[310073256,1704303040791,-365.98,0.00027813,2]
[310073258,1704303040801,-250.0,0.00027813,2]
[310073260,1704303040811,-252.01,0.00027813,10]
[310073262,1704303040821,-167.62,0.00027813,2]
[310073264,1704303040833,-2447.85,0.00027824,2]
[310073266,1704303040844,-321.82,0.00027833,2]
[310073268,1704303040855,-239.17,0.00027872,2]
[310073271,1704303040866,-153.38227332,0.00027892,2]
[310073273,1704303040877,-737.83,0.00027937,2]
[310073275,1704303040887,-524.05,0.00027945,2]
[310073277,1704303040901,-328.41,0.00028021,2]
[310073280,1704303040913,-239.17,0.0002803,2]
[310073282,1704303040925,-328.41,0.00028098,2]
[310073284,1704303040936,-539.51,0.00028102,2]
[310073286,1704303040947,-708.71,0.00028105,2]
[310073288,1704303040958,-328.41,0.00028175,2]
[310073291,1704303040969,-239.17,0.00028189,2]
[310073293,1704303040981,-155.39,0.00028204,2]
[310073295,1704303040992,-328.41,0.00028252,2]
[310073297,1704303041002,-328.41,0.00028329,2]
[310073299,1704303041012,-239.17,0.00028347,2]
[310073301,1704303041023,-155.39,0.00028392,2]
[310073303,1704303041033,-328.41,0.00028406,2]
[310073307,1704303041053,-328.41,0.00028482,2]
[310073309,1704303041063,-239.17,0.00028505,2]
[310073311,1704303041074,-159.11,0.00028543,2]
[310073313,1704303041085,-328.41,0.00028559,2]
[310073315,1704303041096,-155.39,0.0002858,2]
[310073317,1704303041108,-153.38227332,0.00028588,2]
[310073320,1704303041120,-176.89,0.00028628,2]
[310073322,1704303041130,-328.41,0.00028636,2]
[310073324,1704303041143,-239.17,0.00028664,2]
[310073326,1704303041155,-328.41,0.00028713,2]
[310073328,1704303041165,-155.39,0.00028768,2]
[310073330,1704303041176,-328.41,0.0002879,2]
[310073333,1704303041187,-365.98,0.00028791,2]
[310073335,1704303041198,-239.17,0.00028822,2]
[310073337,1704303041209,-328.41,0.00028867,2]
[310073339,1704303041219,-328.41,0.00028944,2]
[310073341,1704303041231,-155.39,0.00028956,2]
[310073343,1704303041241,-1300.0,0.00029,3]
[310073346,1704303041252,-500.0,0.00029,7]
[310073348,1704303041262,-328.41,0.0002902,2]
[310073350,1704303041272,-328.41,0.00029097,2]
[310073352,1704303041282,-155.39,0.00029144,2]
[310073354,1704303041293,-328.41,0.00029174,2]
[310073356,1704303041304,-328.41,0.00029251,2]
[310073359,1704303041315,-153.38227332,0.00029284,2]
[310073361,1704303041325,-328.41,0.00029328,2]
[310073363,1704303041335,-155.39,0.00029332,2]
[310073365,1704303041346,-328.41,0.00029405,2]
[310073367,1704303041356,-163.83,0.00029465,2]
[310073370,1704303041368,-328.41,0.00029481,2]
[310073372,1704303041378,-5776.04,0.00029485,2]
[310073374,1704303041388,-714.2,0.00029496,2]
[310073376,1704303041399,-155.0,0.00029497,2]
[310073378,1704303041409,-155.39,0.0002952,2]
[310073380,1704303041419,-280.14979655,0.00029696,2]
[310073382,1704303041429,-155.39,0.00029708,2]
[310073384,1704303041440,-365.98,0.0002977,2]
[310073386,1704303041450,-155.39,0.00029896,2]
[310073388,1704303041460,-1511.5035,0.000299,2]
[310073391,1704303041471,-1000.0,0.000299,2]
[310073393,1704303041482,-3421.0577,0.000299,2]
[310073395,1704303041492,-3900.24550583,0.000299,2]
[310073398,1704303041506,-10567.68565467,0.000299,2]
[310073400,1704303041519,-641.74232586,0.000299,2]
[310073402,1704303041533,-504.8344828,0.000299,2]
[310073404,1704303041545,-1500.0,0.000299,2]
[310073405,1704303041558,-681.91,0.000299,2]
[310073406,1704303041571,-956.66503495,0.000299,2]
[310073407,1704303041585,-1034.35602805,0.000299,2]
[310073415,1704303041661,-3915.56096784,0.000299,2]
[310073417,1704303041674,-805.70629213,0.000299,4]
[310073419,1704303041686,-462.85,0.0002994,2]
[310073422,1704303041698,-179.54,0.0002995,2]
[310073424,1704303041710,-2883.00800834,0.00029979,7]